[Event "61st Mongolian-ch Open 2023"]
[Site "Khovd"]
[Date "2023.05.24"]
[Round "5.1"]
[White "Enkhnar, Enkhbaatar"]
[Black "Erdene, Ganzorig"]
[Result "1-0"]
[ECO "E60"]
[WhiteElo "2360"]
[BlackElo "2278"]
[Annotator "TA"]
[PlyCount "77"]
[EventDate "2023.05.22"]
[EventType "tourn"]
[EventCountry "MGL"]
[SourceTitle "playchess.com"]
[Source "ChessBase"]
[SourceQuality "1"]
[TimeControl "40/5400+30:1800+30"]

{[%evp 14,77,23,8,37,30,33,34,34,34,57,47,127,55,58,27,62,69,68,62,88,42,77,87,70,63,69,69,104,125,117,113,177,177,186,132,132,152,145,139,136,136,124,130,539,552,598,587,710,709,674,238,235,235,643,631,675,673,614,549,905,905,896,888,1416,1379]} 1. c4 {[%emt 0:01:12]} Nf6 {[%emt 0:00:08]} 2. g3 {[%emt 0:00:04]} g6 {[%emt 0:03:39]} 3. Bg2 {[%emt 0:00:11]} c5 {[%emt 0:00:37]} 4. Nf3 {[%emt 0:00:08]} Bg7 {[%emt 0:00:48]} 5. O-O {[%emt 0:00:25]} O-O {[%emt 0:00:47]} 6. d4 {[%emt 0:00:02]} d6 {[%emt 0:00:40]} 7. dxc5 {[%emt 0:00:07]} dxc5 {[%emt 0:00:22]} 8. Ne5 {[%emt 0:00:02]} Nbd7 {[%emt 0:10:37] E60: King's Indian: Unusual lines and Fianchetto Variation without Nc3.} 9. Nd3 {[%emt 0:00:07]} Ne8 {[%emt 0:00:11] [#]} 10. Nxc5 $1 {[%emt 0:01:21] [#]} Nd6 $146 {[%emt 0:05:05] White is slightly better.} ({Predecessor:} 10... Qc7 11. Bxb7 Rb8 12. Nxd7 Bxd7 13. Bf3 Bxb2 14. Bxb2 Rxb2 15. Qd4 Rb4 16. Nd2 Nd6 {1-0 Martinez Ramos,P (1685)-Portero Bravo,A (1704) ESP-chT Regional U16 2021 (2.4)}) 11. Nxd7 {[%emt 0:00:20]} Qxd7 {[%emt 0:00:06]} 12. c5 {[%emt 0:00:42]} Nc4 {[%emt 0:01:06]} (12... Nb5 $14) 13. Qb3 {[%emt 0:04:13]} (13. Nc3 $1 $16) 13... Qd4 $14 {[%emt 0:01:14][%csl LRb2,LRc5]} 14. Na3 {[%emt 0:04:21]} Na5 {[%emt 0:10:20]} 15. Qb5 {[%emt 0:08:23]} Nc6 {[%emt 0:01:02]} 16. Nc2 {[%emt 0:00:26]} ({Reject} 16. Bxc6 bxc6 17. Qxc6 Bh3 $17) 16... Qe5 {[%emt 0:02:20]} 17. Re1 {[%emt 0:04:01]} (17. Bxc6 bxc6 18. Qxc6 Bh3 $15) (17. Be3 $16) 17... a6 {[%emt 0:05:35]} 18. Qb6 {[%emt 0:01:08]} a5 {[%emt 0:00:21]} 19. Rb1 {[%emt 0:02:11]} ({Much weaker is} 19. Bxc6 bxc6 20. Qxc6 Be6 $11) 19... Ra6 {[%emt 0:02:46]} 20. Qb5 {[%emt 0:00:14]} a4 {[%emt 0:00:38]} 21. Bf4 {[%emt 0:03:57]} Qe6 {[%emt 0:04:15]} 22. Nb4 {[%emt 0:05:57] White is more active.} Nd4 {[%emt 0:09:17]} (22... Ra5 $2 23. Qb6 Ra8 24. Nd5 $18 (24. Nxc6 bxc6 25. Qxc6 Qxc6 $18)) (22... Nxb4 $16 23. Qxb4 Qxa2) 23. Qd3 $18 {[%emt 0:00:08] Hoping for e3.} Ra5 {[%emt 0:00:34]} 24. Rbc1 {[%emt 0:06:55]} (24. e3 $18 Nc6 25. Qa3) 24... Nc6 {[%emt 0:07:35]} 25. a3 {[%emt 0:08:41]} Bxb2 {[%emt 0:03:15]} 26. Nxc6 {[%emt 0:02:36]} bxc6 {[%emt 0:00:26] [#]} 27. Bh6 {[%emt 0:01:03]} Re8 {[%emt 0:03:58]} (27... Bxc1 $2 28. Bxf8 Ra8 29. Qd4) (27... Ba6 28. Qd2) 28. Rb1 {[%emt 0:01:48]} Bf6 $2 {[%emt 0:00:54][%mdl 8192] [#] Black cannot hold the game after this.} (28... Be5 $16) 29. Red1 $1 {[%emt 0:00:55][%cal Od3d8] White threatens Qd8! and mate.} Ra8 {[%emt 0:11:17]} 30. Rb6 {[%emt 0:00:55] Wards off Ba6} Qe5 {[%emt 0:00:19]} 31. Bxc6 {[%emt 0:01:36][%mdl 64] Trapped Piece, Double Attack} Bf5 {[%emt 0:00:12]} 32. Qd2 $2 $40 {[%emt 0:07:57][%mdl 128] White goes for the king.} (32. e4 Bxe4 33. Bxe4) 32... Qxc5 {[%emt 0:02:02] [#]} 33. Be3 $1 {[%emt 0:00:37]} Qxa3 {[%emt 0:00:29]} (33... Qc2 34. Bxe8 Rxe8) 34. Bxa8 {[%emt 0:00:13][%cal Oe3h6] Threatens to win with Bh6! White is clearly winning.} Rxa8 {[%emt 0:02:15]} 35. Bh6 {[%emt 0:00:08][%cal Od2d8] Intending Qd8+! and mate.} e6 {[%emt 0:02:36] [#]} 36. g4 $1 {[%emt 0:01:43][%cal Bg3g4,Bg4f5,Bf5e6,Be6e7][%mdl 544]} Qh3 {[%emt 0:04:58]} (36... Qe7 37. gxf5) 37. gxf5 {[%emt 0:00:40]} g5 {[%emt 0:00:08] [#]} 38. fxe6 $1 {[%emt 0:00:49]} Qxh6 {[%emt 0:00:15] [#]} (38... fxe6 39. Bxg5) 39. e7 $1 {[%emt 0:00:53] Weighted Error Value: White=0.29 (precise) /Black=0.63} 1-0

[Event "61st Mongolian-ch Open 2023"]
[Site "Khovd"]
[Date "2023.05.24"]
[Round "5.2"]
[White "Munkhzul, Turmunkh"]
[Black "Chinguun, Sumiya"]
[Result "0-1"]
[ECO "B52"]
[WhiteElo "2318"]
[BlackElo "2298"]
[Annotator "TA"]
[PlyCount "98"]
[EventDate "2023.05.22"]
[EventType "tourn"]
[EventCountry "MGL"]
[SourceTitle "playchess.com"]
[Source "ChessBase"]
[SourceQuality "1"]
[TimeControl "40/5400+30:1800+30"]

{[%evp 11,98,13,5,-4,32,0,18,-15,0,-71,-43,-40,-27,-110,-112,-108,-102,-108,-102,-127,-118,-127,-104,-133,-120,-142,-113,-137,-113,-120,-113,-117,-112,-145,-115,-150,-143,-152,-156,-162,-150,-151,-150,-157,-107,-112,-112,-105,-112,-112,-99,-112,-94,-115,-91,-85,-43,-43,0,-206,-223,-179,-205,-168,-139,-123,-105,-112,-99,-689,-687,-655,-636,-839,-817,-677,-469,-1266,-874,-1354,-1295,-935,0,-1016,-1030,-29990,-29991,-29991,-29992]} 1. e4 {[%emt 0:00:03]} c5 {[%emt 0:00:05]} 2. Nf3 {[%emt 0:00:12]} d6 {[%emt 0:00:06][%cal Bd7d6,Bd6d5,Bd5d4][%mdl 32]} 3. Bb5+ {[%emt 0:00:26]} Bd7 {[%emt 0:00:12]} 4. Bxd7+ {[%emt 0:00:15]} Qxd7 {[%emt 0:00:59]} 5. O-O {[%emt 0:00:46]} Nc6 {[%emt 0:01:34]} 6. c3 {[%emt 0:01:08]} d5 {[%emt 0:07:25]} 7. e5 {[%emt 0:09:55] B52: Sicilian: Moscow Variation with 3...Bd7.} d4 {[%emt 0:03:37]} 8. Re1 {[%emt 0:04:36][%cal Oe5e6]} e6 {[%emt 0:00:29]} 9. Na3 {[%emt 0:02:21] The position is equal.} Nge7 {[%emt 0:06:23][%cal Bg8e7,Be7g6,Bg6e5][%mdl 32] [#]} 10. c4 $146 {[%emt 0:10:25]} (10. cxd4 $11 Nxd4 11. Nxd4 cxd4 12. d3) ({Predecessor:} 10. Nc4 Nd5 11. cxd4 cxd4 12. d3 b5 13. Ncd2 Be7 14. Nb3 Nb6 15. Re4 Rd8 16. Nbxd4 {1-0 Firouzja,M (2141)-Loncke,M (1726) Tetraktys Concept Mgmt blitz 2021 (5)}) 10... Ng6 {[%emt 0:03:07]} 11. d3 {[%emt 0:02:08]} f6 {[%emt 0:02:19]} 12. Qe2 {[%emt 0:08:36]} (12. exf6 $11 {remains equal.} gxf6 13. Nc2) 12... Ncxe5 {[%emt 0:02:59]} 13. Nxe5 {[%emt 0:01:27]} Nxe5 {[%emt 0:00:07]} ({Weaker is} 13... fxe5 14. Nb1 $15) 14. f4 {[%emt 0:05:37] [#]} Nc6 {[%emt 0:01:00]} 15. Bd2 {[%emt 0:01:56]} Kf7 {[%emt 0:03:31]} 16. Nc2 {[%emt 0:04:47]} Bd6 {[%emt 0:03:14]} 17. Qh5+ {[%emt 0:01:41]} g6 {[%emt 0:01:21]} 18. Qh3 {[%emt 0:02:22]} Rae8 {[%emt 0:03:43]} 19. Re2 {[%emt 0:02:42]} Qc7 {[%emt 0:04:00]} 20. Rf1 {[%emt 0:03:32]} Qc8 {[%emt 0:08:11]} 21. Qh4 {[%emt 0:03:19]} Ne7 {[%emt 0:01:21]} 22. Ne1 {[%emt 0:04:12]} Nf5 {[%emt 0:00:44]} 23. Qh3 {[%emt 0:02:23]} h5 {[%emt 0:01:49][%cal Bh7h5,Bh5h4][%mdl 32]} 24. Nf3 {[%emt 0:03:17]} h4 {[%emt 0:04:07]} 25. a3 {[%emt 0:04:55]} Qb8 {[%emt 0:01:13]} 26. b4 {[%emt 0:02:02]} b6 {[%emt 0:05:08]} ({Don't play} 26... Bxf4 27. Bxf4 Qxf4 28. Ne5+ (28. bxc5 Qc7 $17) 28... Qxe5 29. Rxe5 fxe5 30. bxc5 $16) 27. Re4 {[%emt 0:01:21]} Qb7 {[%emt 0:01:58]} ({Black should play} 27... a6 28. Rb1 Qc7) 28. b5 $17 {[%emt 0:03:44]} a6 {[%emt 0:00:34] Hoping for ...axb5.} 29. a4 {[%emt 0:01:00]} axb5 {[%emt 0:01:22]} (29... Kg7 {simplifies} 30. Bc1 axb5 31. axb5 Qa7) 30. axb5 {[%emt 0:00:11]} Qa8 {[%emt 0:00:21]} 31. Rfe1 {[%emt 0:01:47]} Qa3 {[%emt 0:00:55]} 32. Bc1 {[%emt 0:01:00]} Qc3 {[%emt 0:01:26]} (32... Qxd3 $2 33. Ng5+ fxg5 34. Qxd3 $18) (32... Qb4 {seems wilder.} 33. Kf2 Re7 34. R4e2 Kg7) 33. R4e2 {[%emt 0:01:06]} Kg7 {[%emt 0:00:51] Active counter play!} (33... Qxd3 $2 34. Ng5+ fxg5 35. Qxd3 $18) (33... Bc7 {is more complex.} 34. Bd2 Qb3 35. Bc1 Qa4) 34. Nd2 $1 {[%emt 0:01:37]} Bxf4 {[%emt 0:03:30][%cal Bd6f4,Bf4c1,Bc1e3][%mdl 32] White must now prevent ...Be3+.} 35. Nb1 $2 {[%emt 0:01:57]} (35. Ne4 $11 {and White is okay.} Qxc1 36. Rxc1 Bxc1 37. Qf3) 35... Qxc1 $19 {[%emt 0:04:00]} 36. Rxc1 {[%emt 0:00:21]} Bxc1 {[%emt 0:00:25]} 37. Qf3 {[%emt 0:01:11]} Be3+ {[%emt 0:00:37]} 38. Kf1 {[%emt 0:00:17]} Ra8 {[%emt 0:00:40][%cal Be8a8,Ba8a1,Ba1a2][%mdl 32]} 39. Qb7+ {[%emt 0:01:31]} Kh6 {[%emt 0:00:12] aiming for ...Ra1.} 40. Qxb6 $2 {[%emt 0:00:00][%mdl 8192]} (40. Nd2 $17) 40... Ra1 {[%emt 0:00:00] And now ...Rha8 would win. White is weak on the dark squares} 41. Rb2 {[%emt 0:15:02]} Bc1 {[%emt 0:02:13]} 42. Rb3 {[%emt 0:01:41]} Ra2 {[%emt 0:00:36]} 43. Qc6 {[%emt 0:01:18]} Ne3+ {[%emt 0:01:24]} 44. Ke1 {[%emt 0:03:25]} (44. Kg1 $142 Rxg2+ 45. Qxg2 Nxg2 46. Kxg2) 44... Nxg2+ {[%emt 0:00:23]} 45. Kd1 {[%emt 0:00:15]} Ne3+ {[%emt 0:00:34][%mdl 64] [#] Discovered Attack} 46. Ke1 {[%emt 0:00:06]} Ng2+ {[%emt 0:08:54]} 47. Kd1 $1 {[%emt 0:01:13]} Bf4 {[%emt 0:00:19] ( -> ...Ne3+)} 48. b6 {[%emt 0:07:05]} Ne3+ {[%emt 0:00:21]} 49. Ke1 {[%emt 0:00:10]} Rxh2 {[%emt 0:00:07] An entertaining game by Chinguun.   Weighted Error Value: White=0.66/Black=0.38} 0-1

[Event "61st Mongolian-ch Open 2023"]
[Site "Khovd"]
[Date "2023.05.24"]
[Round "5.3"]
[White "Ulziikhishig Khishigbat"]
[Black "Amartuvshin, Ganzorig"]
[Result "1-0"]
[ECO "E67"]
[WhiteElo "1601"]
[BlackElo "2407"]
[Annotator "TA"]
[PlyCount "107"]
[EventDate "2023.05.22"]
[EventType "tourn"]
[EventCountry "MGL"]
[SourceTitle "playchess.com"]
[Source "ChessBase"]
[SourceQuality "1"]
[TimeControl "40/5400+30:1800+30"]

{[%evp 19,107,0,38,0,16,3,10,-17,-16,-10,-9,-29,0,-24,0,-45,0,-4,0,0,0,0,0,0,0,0,-12,-7,0,0,0,-6,0,0,-4,-14,35,33,108,100,121,105,66,53,108,118,120,113,236,256,267,299,295,106,358,218,302,251,293,294,285,280,247,218,361,241,392,396,403,389,511,308,508,496,6195,6168,6087,6087,5377,5281,29988,2627,1437,1276,29996,29997,29997,29998,29998,29999]} 1. d4 {[%emt 0:00:28]} Nf6 {[%emt 0:00:07]} 2. c4 {[%emt 0:00:09]} g6 {[%emt 0:00:05]} 3. g3 {[%emt 0:00:06]} Bg7 {[%emt 0:00:06]} 4. Bg2 {[%emt 0:00:05]} O-O {[%emt 0:00:10]} 5. Nf3 {[%emt 0:00:08]} d6 {[%emt 0:00:05]} 6. O-O {[%emt 0:00:17]} Nbd7 {[%emt 0:00:09]} 7. Nc3 {[%emt 0:00:29]} e5 {[%emt 0:00:08]} 8. dxe5 {[%emt 0:03:03]} dxe5 {[%emt 0:00:10]} 9. b3 {[%emt 0:02:05]} c6 {[%emt 0:05:45]} 10. Bb2 {[%emt 0:08:32]} Qe7 {[%emt 0:03:16]} 11. Qc2 {[%emt 0:01:48] E67: King's Indian: Fianchetto: 6...Nbd7.} Re8 {[%emt 0:00:25]} (11... e4 $5 {[%cal Re4f3]} 12. Nd4 Re8 $11) 12. Nd2 {[%emt 0:00:40]} Nf8 {[%emt 0:02:11]} 13. Rfd1 {[%emt 0:01:27] The position is equal.} Bf5 {[%emt 0:01:57]} 14. Nde4 {[%emt 0:03:43] [#]} Nxe4 $146 {[%emt 0:00:16]} ({Predecessor:} 14... Rad8 15. Rxd8 Rxd8 16. Rd1 Nxe4 17. Nxe4 Ne6 18. e3 Ng5 19. Rxd8+ Qxd8 20. Qd2 Qxd2 21. Nxd2 {0-1 Czarnecki,W (1980)-Siekaniec,J (2009) POL-chT 2nd League 2019 (6.18)}) 15. Bxe4 {[%emt 0:00:28]} Bg4 {[%emt 0:00:26]} 16. Bg2 {[%emt 0:02:08]} Bf5 {[%emt 0:01:08]} 17. Be4 {[%emt 0:00:34]} Be6 {[%emt 0:00:09]} 18. Rd2 {[%emt 0:02:04]} Bh6 {[%emt 0:03:28]} 19. e3 {[%emt 0:00:45]} Bg4 {[%emt 0:01:00]} 20. Bg2 {[%emt 0:02:50]} Rad8 {[%emt 0:12:48]} 21. Ne4 {[%emt 0:04:03]} f5 {[%emt 0:00:24][%cal Bf7f5,Bf5e4][%mdl 32]} 22. h3 {[%emt 0:00:33]} Bh5 $1 {[%emt 0:00:14]} 23. c5 {[%emt 0:05:39]} fxe4 {[%emt 0:11:32]} 24. Rxd8 {[%emt 0:01:33]} Rxd8 {[%emt 0:00:55]} 25. g4 $1 {[%emt 0:00:09] [#]} Bxg4 $1 {[%emt 0:00:12]} 26. hxg4 {[%emt 0:00:02]} Bg7 {[%emt 0:01:06]} 27. b4 {[%emt 0:01:31]} Nd7 {[%emt 0:02:21]} (27... Ne6 $11) 28. Qxe4 $14 {[%emt 0:04:12]} Qe6 {[%emt 0:02:22]} (28... Nf6 $14 29. Qc4+ (29. Qxe5 Qxe5 30. Bxe5 Nxg4 $11) 29... Kh8) 29. g5 {[%emt 0:06:52]} Qe7 {[%emt 0:01:14]} 30. Rd1 {[%emt 0:07:51][%cal Ob4b5] b5! is the strong threat.} Qxg5 {[%emt 0:00:36]} 31. Qc4+ {[%emt 0:02:14]} Kh8 {[%emt 0:03:48] White stays focused until the end.} (31... Kf8 $1 $14) 32. Qf7 $16 {[%emt 0:04:54]} Nf8 {[%emt 0:02:05] [#]} (32... Qg4 $2 33. Rd6 Qf5 34. Qxf5 gxf5 35. Bh3 $18) 33. Rd6 {[%emt 0:04:48] White is much more active.} (33. Rxd8 $6 Qxd8 34. f4 (34. Qxb7 Qd1+ 35. Bf1 Qg4+ 36. Bg2 Qd1+ 37. Bf1 Qg4+ 38. Bg2 Qd1+ $11) 34... g5 $11) 33... h5 {[%emt 0:20:47]} (33... Rxd6 $16 {is a better defense.} 34. cxd6 Qh5) 34. Qxb7 $40 {[%emt 0:18:05][%mdl 128] White wants a kill.} h4 {[%emt 0:00:21]} 35. Rxd8 {[%emt 0:07:13]} (35. Rxc6 $2 Rd1+ 36. Kh2 h3 37. Kxh3 Qf5+ 38. Kg3 Rd2 $19) (35. Qxa7 $2 h3 $19) (35. Qxc6 Rxd6 36. Qxd6 (36. cxd6 h3 $17 {[%mdl 64] Pin}) 36... h3 $11) (35. f4 Qg3 36. Rxd8 Qe1+ 37. Bf1 Qxe3+ 38. Kg2 (38. Kh1 Qe4+ 39. Bg2 Qe1+ 40. Kh2 Qg3+ 41. Kh1 Qe1+ 42. Kh2 Qg3+ 43. Kh1 Qe1+ $11) 38... h3+ 39. Kh1 Qf3+ 40. Kg1 Qg3+ 41. Kh1 Qf3+ 42. Kg1 Qg3+ 43. Kh1 Qf3+ $11) 35... Qxd8 {[%emt 0:00:10]} 36. b5 $2 {[%emt 0:03:12]} (36. Qxc6 Qd1+ 37. Bf1 (37. Kh2 Qc2 $16) 37... h3 $18) (36. Bxc6 $6 Qd2 $16) (36. Qxa7 Qd1+ 37. Kh2 Qe2 $11) (36. Qf7 $18 {is more deadly.}) 36... cxb5 $2 {[%emt 0:01:12][%mdl 8192]} (36... Qd1+ $16 {keeps fighting.} 37. Kh2 Qe2) 37. Qxb5 {[%emt 0:01:24] Strongly threatening c6.} ({Less strong is} 37. Qxa7 Qg5 $14) 37... Qd1+ {[%emt 0:09:07]} 38. Qf1 {[%emt 0:01:00]} Qg4 {[%emt 0:01:03]} 39. Kh2 {[%emt 0:00:24] Black must now prevent c6.} Qb4 {[%emt 0:09:24] Repels c6} 40. Qc1 {[%emt 0:00:00]} Ne6 {[%emt 0:00:00]} 41. c6 {[%emt 0:01:33] Hoping for Ba3.} Qd6 {[%emt 0:04:15]} (41... e4 {was worth a try.}) 42. Kh1 {[%emt 0:02:09] Threatens to win with Ba3.} Kh7 $2 {[%emt 0:00:48]} (42... Bf6 43. Qc2 Kg7) 43. Ba3 {[%emt 0:00:17] This pair of bishops is nice.} Qd8 {[%emt 0:03:39]} 44. Qc4 {[%emt 0:01:56]} Nc7 {[%emt 0:00:10]} 45. Qf7 {[%emt 0:00:23]} Nb5 $2 {[%emt 0:01:12]} (45... Qf6 46. Qxf6 (46. Qxc7 Qxf2 47. Bb4 Qxe3 $16) 46... Bxf6) 46. Be7 {[%emt 0:01:24] Threatening mate with Be4.} Qd1+ {[%emt 0:04:26]} (46... Qg8 $142 47. Qxg8+ Kxg8 48. Bd5+ Kh7) 47. Kh2 {[%emt 0:00:07][%cal Oe7f6] White threatens Bf6! and mate.} Kh6 {[%emt 0:01:38]} 48. Bf8 {[%emt 0:03:26]} Bxf8 {[%emt 0:00:45]} 49. Qxf8+ {[%emt 0:00:03] KQB-KQN} Kg5 {[%emt 0:00:33]} 50. Qe7+ {[%emt 0:00:38]} (50. f4+ $142 exf4 51. exf4+ Kg4 52. Qf6 Qd8 53. Qxd8 Kxf4 54. Qf6+ Ke3 55. Qe5+ Kd2 56. Qxb5) 50... Kh6 {[%emt 0:00:05]} 51. Qxe5 {[%emt 0:00:20] Qh8+ would kill now.} ({Weaker is} 51. Qxh4+ Qh5 52. Qxh5+ Kxh5 $18) 51... h3 {[%emt 0:00:15]} 52. Qh8+ {[%emt 0:00:21][%mdl 64] Skewer. White mates.} Kg5 {[%emt 0:00:08]} 53. f4+ {[%emt 0:00:08]} Kf5 {[%emt 0:00:12]} 54. Qe5+ {[%emt 0:00:07] Artfully played by Ulziikhishig Khishigbat.   Weighted Error Value: White=0.27 (precise) /Black=0.75} 1-0

[Event "61st Mongolian-ch Open 2023"]
[Site "Khovd"]
[Date "2023.05.24"]
[Round "5.4"]
[White "Amilal Munkhdalai"]
[Black "Munguntuul, Batkhuyag"]
[Result "1-0"]
[ECO "B11"]
[WhiteElo "2141"]
[BlackElo "2408"]
[Annotator "TA"]
[PlyCount "111"]
[EventDate "2023.05.22"]
[EventType "tourn"]
[EventCountry "MGL"]
[SourceTitle "playchess.com"]
[Source "ChessBase"]
[SourceQuality "1"]
[TimeControl "40/5400+30:1800+30"]

{[%evp 12,111,6,3,4,5,21,10,16,-3,25,0,0,0,-7,-11,20,31,-6,34,31,29,43,41,46,47,47,42,51,49,46,45,53,43,53,46,48,47,50,50,47,54,66,58,64,69,150,156,145,143,154,111,104,104,133,135,174,151,163,172,161,164,179,166,249,243,267,265,264,254,239,167,425,425,370,383,537,539,639,627,817,853,885,786,947,991,1124,1072,1048,1027,1031,1267,1470,875,6103,5850,29973,5907,5363,5089,5073,4934]} 1. e4 {[%emt 0:00:01]} c6 {[%emt 0:00:00]} 2. Nc3 {[%emt 0:00:08]} d5 {[%emt 0:00:00]} 3. Nf3 {[%emt 0:00:06]} Bg4 {[%emt 0:00:00]} 4. h3 {[%emt 0:00:05]} Bxf3 {[%emt 0:00:00]} 5. Qxf3 {[%emt 0:00:05]} e6 {[%emt 0:00:00]} 6. d3 {[%emt 0:00:17]} Nd7 {[%emt 0:00:06]} 7. g3 {[%emt 0:01:42] Recently 7.Be2 got a lot of attention.} Bc5 {[%emt 0:06:39] B11: Caro-Kann: Two Knights Variation.} 8. Bg2 {[%emt 0:03:44]} Ne7 {[%emt 0:00:13]} 9. Qe2 {[%emt 0:07:00]} Qc7 {[%emt 0:10:16] The position is equal.} 10. Bf4 {[%emt 0:13:25]} Qb6 {[%emt 0:01:39] [#]} 11. Nd1 $146 {[%emt 0:06:21][%cal Od3d4]} ({Predecessor:} 11. O-O Qxb2 12. Na4 Qb4 13. Nxc5 Qxc5 14. Rab1 b6 15. c4 d4 16. Bd2 a5 17. f4 {0-1 Filgueira,H (2283)-Pap,G (2420) Titled Tuesday intern op 13th Sep Early blitz 2022 (2)}) 11... O-O {[%emt 0:01:27]} 12. c3 {[%emt 0:03:26][%cal Bc2c3,Bc3d4][%mdl 32] b4 would be deadly.} e5 {[%emt 0:03:41]} 13. Be3 {[%emt 0:00:28]} Qa6 {[%emt 0:14:40]} 14. d4 {[%emt 0:04:47] Hoping for Qxa6.} Qxe2+ {[%emt 0:09:05]} 15. Kxe2 {[%emt 0:00:04]} exd4 {[%emt 0:01:41]} 16. cxd4 {[%emt 0:00:07]} Bb6 {[%emt 0:02:50]} 17. exd5 $1 {[%emt 0:57:14]} Nxd5 {[%emt 0:00:36]} 18. Bxd5 {[%emt 0:00:00]} cxd5 {[%emt 0:00:12]} 19. Nc3 {[%emt 0:00:00]} Nf6 {[%emt 0:00:11]} 20. Kd3 {[%emt 0:00:00]} Rfe8 {[%emt 0:02:09]} 21. f3 {[%emt 0:00:00]} (21. Bg5 Ne4 22. Be3 Rad8 $11) 21... h6 {[%emt 0:02:04]} 22. g4 {[%emt 0:00:00]} Ba5 {[%emt 0:04:16]} 23. Rac1 {[%emt 0:00:00]} Re6 {[%emt 0:05:24]} 24. Bd2 {[%emt 0:00:00]} Rd8 {[%emt 0:04:33]} 25. a3 {[%emt 0:00:00]} Ne8 {[%emt 0:01:56]} 26. Rhe1 {[%emt 0:00:00]} Rf6 {[%emt 0:01:56]} 27. b4 {[%emt 0:00:00]} Bb6 {[%emt 0:01:32]} 28. f4 {[%emt 0:00:00] White is more active.} Nc7 {[%emt 0:06:10] [#]} ({Black should play} 28... Rc6 $14) 29. f5 $1 $16 {[%emt 0:00:00]} Rc6 {[%emt 0:02:10]} 30. a4 $36 {[%emt 0:00:00][%mdl 2048] And now a5 would win. Keeping Black busy.} a5 {[%emt 0:03:07]} 31. bxa5 {[%emt 0:00:00]} Bxa5 {[%emt 0:00:12]} 32. Nb5 {[%emt 0:00:00]} Bxd2 {[%emt 0:04:46]} 33. Kxd2 {[%emt 0:00:00]} Rxc1 {[%emt 0:05:54]} 34. Rxc1 {[%emt 0:00:00][%mdl 4096] Endgame KRN-KRN} Ne8 {[%emt 0:00:12]} 35. Rc5 {[%emt 0:00:00]} Nf6 {[%emt 0:00:30] White must now prevent ...Ne4+.} 36. Nc3 {[%emt 0:00:00]} Rd7 {[%emt 0:00:11]} 37. Ke3 {[%emt 0:00:00]} Kh7 {[%emt 0:00:37]} (37... Kf8 {might work better.} 38. Kf4 g6) 38. Kf4 $18 {[%emt 0:00:24]} Re7 {[%emt 0:03:24]} 39. Rb5 {[%emt 0:05:45]} (39. Nxd5 Re4+ 40. Kf3 Rxd4 41. Nxf6+ gxf6 $11) 39... Kg8 {[%emt 0:00:00]} 40. h4 {[%emt 0:00:00]} ({Not} 40. Nxd5 Re4+ 41. Kg3 Rxd4 42. Nxf6+ gxf6 $14) 40... Re1 {[%emt 0:00:00]} 41. Rb1 {[%emt 0:14:01]} ({Weaker is} 41. Nxd5 Re4+ 42. Kf3 Rxd4 43. Nxf6+ gxf6 $14) 41... Re8 {[%emt 0:17:42]} (41... Rxb1 42. Nxb1 Kf8) 42. Rxb7 {[%emt 0:03:49]} Rc8 {[%emt 0:00:44]} 43. Rb3 {[%emt 0:00:50]} Rc4 {[%emt 0:00:17]} (43... Kf8 {is a better defense.} 44. g5 Ne8 45. Nxd5 Rd8) 44. g5 {[%emt 0:02:15]} Nd7 {[%emt 0:05:12] [#]} 45. Ke3 {[%emt 0:00:12]} (45. Nxd5 $2 {too greedy.} Rxd4+ 46. Ke3 Rxd5 $19) 45... hxg5 {[%emt 0:02:45]} 46. hxg5 {[%emt 0:00:05]} Kf8 {[%emt 0:01:58]} 47. Kd3 {[%emt 0:00:24]} Ke8 {[%emt 0:01:02]} 48. a5 {[%emt 0:00:22][%cal Ba4a5,Ba5a6,Ba6a7][%mdl 32]} Rc7 {[%emt 0:02:19]} 49. Nxd5 {[%emt 0:02:04]} Ra7 {[%emt 0:00:08]} 50. Ra3 {[%emt 0:00:48]} Nb8 {[%emt 0:00:23]} 51. Kc4 {[%emt 0:00:43]} Kd7 {[%emt 0:00:01]} 52. Kc5 {[%emt 0:00:51]} Nc6 {[%emt 0:00:07]} 53. a6 {[%emt 0:00:23]} g6 {[%emt 0:04:17]} 54. f6 {[%emt 0:00:31]} (54. Nf6+ $142 Kc7 55. d5 Ne5 56. d6+ Kc8 57. Re3 Rxa6 58. Rxe5 Ra5+ 59. Kd4 Ra4+ 60. Kc3) 54... Nd8 {[%emt 0:00:23]} 55. Kb6 {[%emt 0:01:18]} Ra8 {[%emt 0:00:54]} 56. a7 {[%emt 0:00:11] Weighted Error Value: White=0.08 (flawless) /Black=0.44} 1-0